bitfinex/quotes_SOLUSD_20241115
["timestamp","ask_amount","ask_price","bid_price","bid_amount"]
[1731686720280,3.3496,208.98,208.95,22.01035471]
[1731686720467,3.3496,208.98,208.94,22.01035471]
[1731686721050,3.3492,209.0,208.95,22.01035471]
[1731686721254,25.35955471,209.0,208.93,22.01035471]
[1731686721779,22.01035471,208.99,208.92,22.01035471]
[1731686721965,22.01035471,208.98,208.91,22.01035471]
[1731686722162,22.01035471,208.96,208.88,6.6047]
[1731686722461,22.01035471,208.99,208.93,22.01035471]
[1731686722853,22.01035471,208.99,208.88,11.392]
[1731686722854,22.01035471,208.97,208.91,22.01035471]
[1731686723162,22.01035471,208.97,208.88,6.6047]
[1731686723163,25.36025471,208.96,208.89,22.01035471]
[1731686723663,22.26133471,208.95,208.89,22.01035471]
[1731686723847,22.01035471,208.92,208.85,37.09375471]
[1731686724051,0.25098,208.95,208.83,6.2915]
[1731686724052,22.01035471,208.9,208.84,22.01035471]
[1731686724251,22.01035471,208.88,208.81,22.01035471]
[1731686724474,0.1,208.94,208.83,22.01035471]
[1731686724475,22.01035471,208.89,208.83,22.01035471]
[1731686724779,0.25098,208.89,208.83,22.01035471]
[1731686724980,0.25098,208.89,208.66,22.01035471]
[1731686724981,11.7325,208.82,208.66,22.01035471]
[1731686725276,22.01035471,208.78,208.71,22.01035471]
[1731686725477,11.7325,208.82,208.67,0.1]
[1731686725662,11.7325,208.82,208.67,0.2]
[1731686726163,0.25098,208.81,208.66,6.4828]
[1731686726372,0.25098,208.81,208.63,16.7757]
[1731686726373,22.01035471,208.71,208.65,22.01035471]
[1731686726852,0.35098,208.79,208.65,22.01035471]
[1731686727054,22.01035471,208.75,208.68,22.01035471]
[1731686727470,22.01035471,208.74,208.67,22.01035471]
[1731686727678,22.01035471,208.72,208.65,22.01035471]
[1731686727880,22.01035471,208.75,208.69,22.01035471]
[1731686728081,25.36295471,208.79,208.73,22.01035471]
[1731686728377,25.36295471,208.79,208.63,16.7758]
[1731686728378,3.3516,208.85,208.7,0.1]
[1731686728566,3.3516,208.85,208.71,0.19367462]
[1731686728959,25.2332,208.89,208.71,0.19367462]
[1731686729157,3.3512,208.88,208.72,4.7911]
[1731686729480,22.01035471,208.85,208.79,22.01035471]
[1731686729778,25.36155471,208.88,208.82,22.01035471]
[1731686729977,3.3512,208.88,208.84,22.01035471]
[1731686730879,3.3512,208.88,208.85,22.01035471]
[1731686731085,8.3758,208.94,208.84,22.01035471]
[1731686731086,22.01035471,208.9,208.84,22.01035471]
[1731686731552,22.01035471,208.89,208.83,22.01035471]
[1731686731959,22.01035471,208.93,208.87,22.01035471]
[1731686732263,8.3728,209.01,208.85,0.09367462]
[1731686732582,8.3728,209.01,208.84,30.100984]
[1731686733375,8.3728,209.01,208.84,34.889084]
[1731686733676,22.01035471,209.0,208.84,30.000984]
[1731686733885,22.01035471,208.91,208.85,22.01035471]
[1731686734085,22.01035471,208.88,208.81,22.01035471]
[1731686734276,22.01035471,208.86,208.8,22.01035471]
[1731686734459,0.22549,208.96,208.78,16.8639]
[1731686734780,35.77462505,208.88,208.81,35.77462505]
[1731686735088,35.77462505,208.89,208.82,35.77462505]
[1731686735260,0.1,208.94,208.79,35.77462505]
[1731686735261,35.77462505,208.86,208.79,35.77462505]
[1731686735459,35.77462505,208.86,208.8,59.55150905]
[1731686735672,35.77462505,208.86,208.8,35.77462505]
[1731686735876,35.77462505,208.9,208.84,35.77462505]
[1731686736187,3.3504,208.93,208.79,0.1]
[1731686736388,3.3504,208.93,208.8,0.1]
[1731686736589,3.3504,208.93,208.82,15.4658]
[1731686736796,3.3504,208.93,208.83,0.1]
[1731686737088,3.3504,208.93,208.83,23.876884]
[1731686737260,3.3504,208.93,208.88,35.77462505]
[1731686737655,39.12502505,208.93,208.87,35.77462505]
[1731686738062,3.3504,208.93,208.87,35.77462505]
[1731686738267,3.3504,208.93,208.89,35.77462505]
[1731686738558,0.1,209.01,208.83,28.565384]
[1731686738559,35.77462505,208.99,208.92,35.77462505]
[1731686738773,35.77462505,209.0,208.94,35.77462505]
[1731686739473,35.77462505,209.0,208.86,0.1]
[1731686739474,3.3494,208.99,208.93,35.77462505]
[1731686739991,3.3494,208.99,208.94,35.77462505]
[1731686740300,39.12402505,208.99,208.93,35.77462505]
[1731686740496,3.3494,208.99,208.95,35.77462505]
[1731686740780,35.77462505,208.98,208.91,35.77462505]
[1731686740988,35.77462505,208.95,208.88,59.55150905]
[1731686741366,35.77462505,208.96,208.9,35.77462505]
[1731686741577,3.3494,208.99,208.92,35.77462505]
[1731686741578,35.77462505,208.98,208.92,35.77462505]
[1731686742887,39.12432505,208.97,208.91,35.77462505]
[1731686743092,39.12432505,208.97,208.9,35.77462505]
[1731686743585,35.77462505,208.94,208.88,35.77462505]
[1731686744086,3.3497,208.97,208.92,35.77462505]
[1731686744888,3.3497,208.97,208.93,35.77462505]
[1731686745068,3.3497,208.97,208.92,35.77462505]
[1731686745464,3.3497,208.97,208.91,35.77462505]
[1731686745667,35.77462505,208.94,208.88,35.77462505]
[1731686745871,35.77462505,208.94,208.87,35.77462505]
[1731686746087,35.77462505,208.96,208.9,35.77462505]
[1731686746289,39.12432505,208.97,208.91,35.77462505]
[1731686747089,39.12432505,208.97,208.9,35.77462505]
[1731686747499,39.12432505,208.97,208.91,35.77462505]
[1731686747791,3.3497,208.97,208.91,35.77462505]
[1731686749070,39.12432505,208.97,208.91,35.77462505]
[1731686749700,3.3497,208.97,208.91,35.77462505]
[1731686750185,3.3497,208.97,208.93,35.77462505]
[1731686750497,35.77462505,209.02,208.96,35.77462505]
[1731686750904,35.77462505,209.02,208.95,35.77462505]
[1731686751272,35.77462505,209.01,208.95,35.77462505]
[1731686751489,39.12382505,209.0,208.93,35.77462505]
[1731686751693,35.77462505,208.99,208.93,35.77462505]
[1731686751903,39.12382505,209.0,208.93,35.77462505]
[1731686752406,3.3492,209.0,208.94,35.77462505]
[1731686752774,3.3492,209.0,208.95,35.77462505]
[1731686753285,3.349,209.02,208.96,35.77462505]
[1731686753498,39.12362505,209.02,208.95,35.77462505]
[1731686753786,35.77462505,209.01,208.95,35.77462505]
[1731686754196,35.77462505,209.01,208.94,35.77462505]
[1731686754407,3.3492,209.0,208.95,35.77462505]
[1731686755707,3.3492,209.0,208.94,35.77462505]
[1731686755925,39.12382505,209.0,208.94,35.77462505]
[1731686756211,3.3492,209.0,208.94,35.77462505]
[1731686756415,3.3492,209.0,208.96,35.77462505]
[1731686756594,3.3492,209.0,208.97,35.77462505]
[1731686756784,3.349,209.02,208.98,21.97921199]
[1731686756985,3.3488,209.03,208.99,21.97921199]
[1731686757191,3.3486,209.05,209.01,21.97921199]
[1731686757589,3.3486,209.05,209.0,21.97921199]
[1731686757795,3.3486,209.05,208.99,21.97921199]
[1731686758114,3.3486,209.05,208.98,21.97921199]
[1731686758327,21.97921199,209.05,208.99,21.97921199]
[1731686758616,21.97921199,209.03,208.97,21.97921199]
[1731686758997,21.97921199,209.02,208.96,11.964]
[1731686759200,21.97921199,208.98,208.91,33.94561199]
[1731686759405,21.97921199,208.99,208.92,21.97921199]
[1731686760114,3.3496,208.98,208.92,21.97921199]
[1731686760416,3.3496,208.98,208.91,16.753]
[1731686760417,3.3496,208.98,208.93,21.97921199]
[1731686760897,0.12549,209.01,208.95,21.97921199]
[1731686761096,22.23019199,209.01,208.94,21.97921199]
[1731686761717,0.25098,209.01,208.95,21.97921199]
[1731686761922,21.97921199,209.0,208.94,21.97921199]
[1731686762120,21.97921199,209.0,208.87,46.8972]
[1731686762121,21.97921199,208.97,208.9,21.97921199]
[1731686762299,21.97921199,208.96,208.9,21.97921199]
[1731686762502,21.97921199,208.99,208.87,39.8159]
[1731686762716,0.25098,208.98,208.87,39.7159]
[1731686763018,0.25098,208.98,208.87,39.8159]
[1731686763213,6.0521,209.09,208.9,0.2]
[1731686763398,9.3999,209.09,208.91,0.09367462]
[1731686763593,9.3999,209.09,208.89,0.1]
[1731686763902,21.97921199,209.0,208.93,21.97921199]
[1731686764109,21.97921199,208.98,208.92,21.97921199]
[1731686764493,6.11,209.14,208.97,21.97921199]
[1731686764694,21.97921199,209.09,209.02,21.97921199]
[1731686765004,21.97921199,209.08,209.02,21.97921199]
[1731686765209,25.32681199,209.1,209.03,21.97921199]
[1731686765391,21.95061857,209.09,209.02,21.97921199]
[1731686765687,25.32721199,209.08,209.01,21.97921199]
[1731686765891,3.348,209.08,209.02,21.97921199]
[1731686766091,3.348,209.08,208.97,23.776884]
[1731686766092,3.348,209.08,209.04,21.97921199]
[1731686766617,3.348,209.08,209.06,21.97921199]
[1731686766922,25.32641199,209.13,209.06,21.97921199]
[1731686767226,3.3472,209.13,209.09,21.97921199]
[1731686767406,3.3472,209.13,209.08,21.97921199]
[1731686767915,3.3472,209.13,209.07,21.97921199]
[1731686768620,0.4742686,209.15,209.11,21.97921199]
[1731686768824,3.8211686,209.15,209.1,21.97921199]
[1731686769324,3.8211686,209.15,209.11,21.97921199]
[1731686769528,3.8211686,209.15,209.1,21.97921199]
[1731686770794,3.8211686,209.15,209.11,21.97921199]
[1731686771797,3.8211686,209.15,209.14,21.97921199]
[1731686771994,3.8211686,209.15,209.13,21.97921199]
[1731686772208,3.8211686,209.15,209.11,21.97921199]
[1731686772826,3.8211686,209.15,209.12,21.97921199]
[1731686773001,3.8211686,209.15,209.13,21.97921199]
[1731686773322,3.8211686,209.15,209.14,21.97921199]
[1731686773323,0.4742686,209.15,209.14,21.97921199]
[1731686773723,0.4742686,209.15,209.14,45.75609599]
[1731686774109,0.4742686,209.15,209.14,21.97921199]
[1731686774300,0.4742686,209.15,209.14,45.75609599]
[1731686774701,0.4742686,209.15,209.14,23.776884]
[1731686775007,0.4742686,209.15,209.14,21.97921199]
[1731686775726,0.4742686,209.15,209.14,45.75609599]
[1731686776809,0.4742686,209.15,209.14,65.75609599]
[1731686777213,0.4742686,209.15,209.14,45.75609599]
[1731686778534,3.59608,209.26,209.15,23.776884]
[1731686778832,3.59608,209.26,209.21,21.97921199]
[1731686779316,3.59608,209.26,209.22,21.97921199]
[1731686779520,3.59608,209.26,209.23,21.97921199]
[1731686779824,15.7928,209.34,209.25,21.97921199]
[1731686779825,25.32351199,209.31,209.25,21.97921199]
[1731686780018,3.3443,209.31,209.27,21.97921199]
[1731686780531,3.3443,209.31,209.26,21.97921199]
[1731686781115,3.3443,209.31,209.27,21.97921199]
[1731686781521,0.12549,209.3,209.25,21.97921199]
[1731686781829,0.25098,209.28,209.22,21.97921199]
[1731686782005,3.3443,209.31,209.25,21.97921199]
[1731686782210,3.3443,209.31,209.2,21.97921199]
[1731686782211,3.3441,209.33,209.3,21.97921199]
[1731686782430,3.3441,209.33,209.21,45.797384]
[1731686782729,3.3441,209.33,209.3,21.97921199]
[1731686782938,3.3441,209.33,209.29,21.97921199]
[1731686784436,21.97921199,209.32,209.22,16.7287]
[1731686784635,3.3441,209.33,209.28,21.97921199]
[1731686785530,25.32281199,209.35,209.29,21.97921199]
[1731686785716,21.97921199,209.33,209.27,21.97921199]
[1731686786141,3.3436,209.35,209.32,21.97921199]
[1731686786441,3.3436,209.35,209.22,16.7287]
[1731686786442,25.32281199,209.35,209.29,21.97921199]
[1731686786738,25.32281199,209.35,209.22,16.7287]
[1731686786739,3.3436,209.35,209.31,21.97921199]
[1731686787117,3.3436,209.35,209.33,21.97921199]
[1731686787627,3.3436,209.35,209.32,21.97921199]
[1731686787825,0.4742686,209.36,209.35,39.010784]
[1731686788036,0.4742686,209.36,209.35,61.9448167]
[1731686788223,0.4742686,209.36,209.35,81.9448167]
[1731686789519,0.4742686,209.36,209.35,61.98971199]
[1731686789839,0.4742686,209.36,209.35,41.98971199]
[1731686790735,0.4742686,209.36,209.35,20.0105]
[1731686790938,0.4742686,209.36,209.35,37.21311199]
[1731686791237,0.4742686,209.36,209.35,21.97921199]
[1731686791441,0.4742686,209.36,209.34,21.97921199]
[1731686791739,3.8177686,209.36,209.34,21.97921199]
[1731686791945,3.8177686,209.36,209.29,16.5618]
[1731686792236,3.8177686,209.36,209.27,23.2798]
[1731686792237,0.4742686,209.36,209.35,21.97921199]
[1731686792724,0.4742686,209.36,209.34,21.97921199]
[1731686792924,3.8177686,209.36,209.27,23.28]
[1731686793131,3.8177686,209.36,209.33,21.97921199]
[1731686793328,0.4742686,209.36,209.35,21.97921199]
[1731686794030,0.4742686,209.36,209.34,21.97921199]
[1731686794243,0.4742686,209.36,209.35,21.97921199]
[1731686799035,0.4742686,209.36,209.35,45.75609599]
[1731686799362,3.3419,209.47,209.36,60.494384]
[1731686799849,3.3419,209.47,209.42,21.97921199]
[1731686800241,3.3419,209.47,209.43,21.97921199]
[1731686800745,3.3419,209.47,209.42,21.97921199]
[1731686800943,21.97921199,209.43,209.37,21.97921199]
[1731686801731,21.97921199,209.44,209.38,21.97921199]
[1731686801926,21.97921199,209.42,209.36,21.97921199]
[1731686802135,21.97921199,209.41,209.35,21.97921199]
[1731686802333,21.97921199,209.42,209.36,21.97921199]
[1731686802657,21.97921199,209.46,209.4,21.97921199]
[1731686802829,21.97921199,209.45,209.39,21.97921199]
[1731686803030,21.97921199,209.46,209.4,21.97921199]
[1731686803345,21.97921199,209.44,209.38,21.97921199]
[1731686803532,21.97921199,209.45,209.39,21.97921199]
[1731686803732,21.97921199,209.46,209.4,21.97921199]
[1731686804151,3.342,209.46,209.42,21.97921199]
[1731686804348,21.97921199,209.51,209.44,21.97921199]
[1731686804945,21.97921199,209.5,209.44,21.97921199]
[1731686805664,21.97921199,209.5,209.43,21.97921199]
[1731686805958,21.97921199,209.49,209.42,21.97921199]
[1731686806336,21.97921199,209.5,209.44,21.97921199]
[1731686806551,21.97921199,209.49,209.43,21.97921199]
[1731686806745,3.3417,209.47,209.41,21.97921199]
[1731686806958,3.3415,209.49,209.44,21.97921199]
[1731686807455,25.32041199,209.51,209.45,21.97921199]
[1731686807756,21.97921199,209.48,209.42,21.97921199]
[1731686807930,21.97921199,209.48,209.41,21.97921199]
[1731686808345,21.97921199,209.48,209.42,21.97921199]
[1731686808548,21.97921199,209.43,209.36,21.97921199]
[1731686808756,21.97921199,209.42,209.36,21.97921199]
[1731686808959,3.3427,209.41,209.37,21.97921199]
[1731686809338,3.3427,209.41,209.33,39.0432]
[1731686809339,3.3427,209.41,209.38,21.97921199]
[1731686809539,3.3427,209.41,209.37,21.97921199]
[1731686809936,21.97921199,209.42,209.36,21.97921199]
[1731686810135,21.97921199,209.41,209.34,21.97921199]
[1731686810355,21.97921199,209.42,209.36,21.97921199]
[1731686810552,21.97921199,209.42,209.35,21.97921199]
[1731686810955,3.3424,209.43,209.38,21.97921199]
[1731686811260,25.32161199,209.43,209.36,21.97921199]
[1731686811555,25.32161199,209.43,209.37,21.97921199]
[1731686811749,3.3424,209.43,209.38,21.97921199]
[1731686811969,0.1,209.51,209.39,21.97921199]
[1731686811970,3.3422,209.45,209.39,21.97921199]
[1731686812262,25.32141199,209.45,209.38,21.97921199]
[1731686812934,21.97921199,209.44,209.38,21.97921199]
[1731686813736,25.32141199,209.45,209.38,21.97921199]
[1731686814042,25.32141199,209.45,209.39,21.97921199]
[1731686814237,21.97921199,209.44,209.37,21.97921199]
[1731686814672,21.97921199,209.43,209.36,21.97921199]
[1731686814969,21.97921199,209.42,209.35,21.97921199]
[1731686815442,3.3422,209.44,209.38,21.97921199]
[1731686815844,3.3422,209.44,209.39,21.97921199]
[1731686816356,3.3422,209.44,209.4,21.97921199]
[1731686816670,3.3422,209.44,209.41,21.97921199]
[1731686816863,3.3422,209.44,209.41,13.68182314]
[1731686817159,3.3422,209.44,209.4,13.68182314]
[1731686817566,13.68182314,209.46,209.4,13.68182314]
[1731686818038,8.3532,209.51,209.38,13.68182314]
[1731686818039,13.68182314,209.45,209.38,13.68182314]
[1731686818239,13.68182314,209.42,209.35,13.68182314]
[1731686818445,13.68182314,209.41,209.35,13.68182314]
[1731686818765,13.68182314,209.38,209.31,13.68182314]
[1731686818980,13.68182314,209.39,209.33,13.68182314]
[1731686819268,13.68182314,209.39,209.32,13.68182314]
[1731686819451,13.68182314,209.4,209.34,13.68182314]
[1731686819761,3.3428,209.41,209.37,13.68182314]
[1731686819966,3.3428,209.41,209.38,13.68182314]
[1731686820353,3.342,209.45,209.4,13.68182314]
[1731686820555,17.02382314,209.45,209.39,13.68182314]
[1731686820755,13.68182314,209.43,209.37,13.68182314]
[1731686820953,13.68182314,209.41,209.34,13.68182314]
[1731686821156,13.68182314,209.37,209.27,7.47661951]
[1731686821367,24.027864,209.44,209.27,24.20121951]
[1731686821557,0.25098,209.44,209.37,13.68182314]
[1731686821863,0.25098,209.44,209.27,24.20121951]
[1731686821864,13.68182314,209.4,209.34,13.68182314]
[1731686822164,13.68182314,209.39,209.33,13.68182314]
[1731686822372,13.68182314,209.39,209.32,13.68182314]
[1731686822557,13.68182314,209.38,209.32,13.68182314]
[1731686822864,11.6984,209.43,209.31,13.68182314]
[1731686822865,13.68182314,209.37,209.31,13.68182314]
[1731686823164,3.3435,209.36,209.31,13.68182314]
[1731686823759,3.3435,209.36,209.32,13.68182314]
[1731686823947,3.3435,209.36,209.31,13.68182314]
[1731686824678,3.3435,209.36,209.34,13.68182314]
[1731686824965,21.90374543,209.41,209.35,21.90374543]
[1731686825357,11.6978,209.44,209.3,16.7222]
[1731686825547,21.90374543,209.41,209.3,16.7222]
[1731686825747,21.90374543,209.42,209.36,21.90374543]
[1731686826161,21.90374543,209.4,209.34,21.90374543]
[1731686826468,21.90374543,209.36,209.3,21.90374543]
[1731686826673,21.90374543,209.36,209.29,21.90374543]
[1731686827047,3.3436,209.35,209.3,21.90374543]
[1731686827879,25.24734543,209.35,209.28,21.90374543]
[1731686828173,3.3433,209.37,209.32,21.90374543]
[1731686828380,3.3433,209.37,209.34,21.90374543]
[1731686828682,25.24704543,209.37,209.31,21.90374543]
[1731686829275,25.24704543,209.37,209.32,21.90374543]
[1731686829276,3.3433,209.37,209.32,21.90374543]
[1731686829673,21.90374543,209.36,209.3,21.90374543]
[1731686829881,3.3433,209.37,209.33,21.90374543]
[1731686830365,3.3433,209.37,209.32,21.90374543]
[1731686830879,21.90374543,209.42,209.35,21.90374543]
[1731686831053,3.3422,209.44,209.39,21.90374543]
[1731686831450,3.3422,209.44,209.38,21.90374543]
[1731686831684,3.3422,209.44,209.39,21.90374543]
[1731686831856,3.342,209.46,209.43,21.90374543]
[1731686832079,14.74023407,209.52,209.43,21.90374543]
[1731686832080,21.90374543,209.5,209.43,21.27554543]
[1731686832373,21.90374543,209.49,209.43,21.27554543]
[1731686832577,21.90374543,209.49,209.42,21.90374543]
[1731686832760,25.24534543,209.48,209.41,21.90374543]
[1731686832952,21.90374543,209.47,209.4,21.90374543]
[1731686833152,0.12549,209.46,209.4,21.90374543]
[1731686833380,0.12549,209.47,209.42,21.90374543]
[1731686833575,0.12549,209.47,209.41,21.90374543]
[1731686833768,22.02923543,209.47,209.41,21.90374543]
[1731686833955,22.02923543,209.47,209.38,11.9399]
[1731686833956,3.3419,209.46,209.38,11.9399]
[1731686834164,3.3419,209.46,209.4,21.90374543]
[1731686834359,3.3419,209.46,209.41,21.90374543]
[1731686834662,0.12549,209.47,209.45,21.90374543]
[1731686835074,3.3414,209.5,209.45,21.90374543]
[1731686835887,3.3414,209.5,209.44,21.90374543]
[1731686836082,21.90374543,209.49,209.42,21.90374543]
[1731686836375,25.24514543,209.5,209.44,21.90374543]
[1731686836683,3.341,209.52,209.47,21.90374543]
[1731686836883,3.341,209.52,209.46,21.90374543]
[1731686837086,25.24474543,209.52,209.46,21.90374543]
[1731686837260,11.51061703,209.55,209.51,21.90374543]
[1731686837456,4.1405,209.55,209.51,21.90374543]
[1731686837874,26.04424543,209.55,209.49,21.90374543]
[1731686838068,21.90374543,209.54,209.47,21.90374543]
[1731686838381,4.1405,209.55,209.43,21.90374543]
[1731686838382,21.90374543,209.49,209.43,21.90374543]
[1731686838581,0.12549,209.49,209.41,21.90374543]
[1731686838766,0.12549,209.49,209.37,4.7761]
[1731686838967,0.12549,209.45,209.41,21.90374543]
[1731686839505,0.25098,209.46,209.41,21.90374543]
[1731686839680,0.25098,209.46,209.43,21.90374543]
[1731686839982,0.25098,209.47,209.42,21.90374543]
[1731686840171,3.59268,209.48,209.44,21.90374543]
[1731686840374,3.3414,209.49,209.38,11.94]
[1731686840982,25.24514543,209.49,209.42,21.90374543]
[1731686841187,21.90374543,209.48,209.41,21.90374543]
[1731686841378,21.90374543,209.47,209.41,21.90374543]
[1731686841582,0.25098,209.46,209.42,21.90374543]
[1731686841895,0.25098,209.47,209.43,21.90374543]
[1731686842072,3.59278,209.47,209.43,21.90374543]
[1731686842273,0.25098,209.47,209.43,21.90374543]
[1731686842462,0.25098,209.47,209.42,21.90374543]
[1731686842659,25.49652543,209.47,209.4,21.90374543]
[1731686842871,3.59278,209.47,209.43,21.90374543]
[1731686843273,3.59278,209.47,209.38,16.716]
[1731686843274,3.59278,209.47,209.42,21.90374543]
[1731686843471,25.49652543,209.47,209.41,21.90374543]
[1731686843876,0.25098,209.45,209.39,21.90374543]
[1731686844085,0.25098,209.4,209.35,21.90374543]
[1731686844291,22.15472543,209.38,209.31,21.90374543]
[1731686844463,0.25098,209.33,209.29,21.90374543]
[1731686844668,0.25098,209.33,209.24,6.613]
[1731686844864,0.25098,209.33,209.25,7.47939882]
[1731686845369,3.343,209.39,209.25,24.20559882]
[1731686845582,0.25098,209.36,209.25,24.20559882]
[1731686845886,0.25098,209.36,209.34,13.69763631]
[1731686846280,0.25098,209.37,209.34,13.69763631]
[1731686846480,0.25098,209.39,209.34,13.69763631]
[1731686846665,7.37011703,209.45,209.38,13.69763631]
[1731686846865,3.3413,209.5,209.35,43.876884]
[1731686847077,7.37011703,209.52,209.49,21.87800886]
[1731686847789,7.37011703,209.54,209.51,21.87800886]
[1731686848000,10.71081703,209.54,209.49,21.87800886]
[1731686848293,2.39,209.7,209.57,0.1]
[1731686848469,21.87800886,209.74,209.58,8.51809379]
[1731686848793,0.1,209.77,209.58,5.71633084]
[1731686848967,0.1,209.77,209.68,117.61564834]
[1731686849167,21.87800886,209.73,209.68,117.61564834]
[1731686849363,21.87800886,209.71,209.68,117.61564834]
[1731686849697,0.1,209.79,209.68,140.66087414]
[1731686849865,0.1,209.78,209.69,23.5175048]
[1731686851066,3.3363,209.81,209.72,21.87800886]
[1731686851272,21.87800886,209.8,209.73,21.9697631]
[1731686851579,21.87800886,209.79,209.73,21.9697631]
[1731686851890,3.3368,209.78,209.73,0.09175424]
[1731686852067,3.3368,209.78,209.74,21.87800886]
[1731686852484,24.027864,209.77,209.72,21.87800886]
[1731686852880,3.58808,209.77,209.72,21.87800886]
[1731686853085,3.58808,209.77,209.71,0.1]
[1731686853286,3.58808,209.77,209.74,21.87800886]
[1731686853492,3.58808,209.77,209.73,21.87800886]
[1731686854578,0.25098,209.75,209.67,0.2]
[1731686854793,0.25098,209.75,209.74,21.87800886]
[1731686854973,0.25098,209.75,209.73,21.87800886]
[1731686855174,0.25098,209.76,209.73,21.87800886]
[1731686856092,0.25098,209.76,209.72,21.87800886]
[1731686856481,2.8605,209.75,209.7,21.87800886]
[1731686856679,0.25098,209.74,209.71,21.87800886]
[1731686857086,0.25098,209.74,209.7,21.87800886]
[1731686857590,24.027864,209.74,209.68,21.87800886]
[1731686857794,23.776884,209.69,209.61,0.1]
[1731686857972,24.027864,209.74,209.61,0.2]
[1731686858292,24.027864,209.74,209.63,0.1]
[1731686858793,24.027864,209.72,209.62,0.1]
[1731686859097,0.25098,209.66,209.61,0.1]
[1731686859301,0.25098,209.66,209.62,21.87800886]
[1731686859473,0.12549,209.66,209.63,21.87800886]
[1731686859679,0.25098,209.68,209.63,21.87800886]
[1731686860290,21.87800886,209.66,209.61,0.1]
[1731686860481,0.25098,209.65,209.61,0.1]
[1731686860685,0.25098,209.63,209.58,21.87800886]
[1731686860885,22.12898886,209.63,209.56,21.87800886]
[1731686861096,2.862,209.64,209.55,23.2588444]
[1731686861097,22.12898886,209.61,209.55,23.2588444]
[1731686861299,45.90587286,209.59,209.55,1.38083554]
[1731686861476,13.85538332,209.73,209.72,0.1]
[1731686861682,21.87800886,209.8,209.7,0.1]
[1731686861904,29.34335152,209.79,209.7,0.1]
[1731686862084,21.87800886,209.79,209.72,21.87800886]
[1731686862605,21.87800886,209.8,209.73,21.87800886]
[1731686862901,2.8589,209.87,209.66,0.1]
[1731686862902,21.87800886,209.77,209.66,0.1]
[1731686863103,24.027864,209.74,209.67,21.87800886]
[1731686863291,24.027864,209.74,209.69,21.87800886]
[1731686863490,24.027864,209.76,209.68,0.1]
[1731686863798,24.027864,209.76,209.69,21.87800886]
[1731686864001,24.027864,209.74,209.67,21.97800886]
[1731686864183,24.027864,209.74,209.69,21.87800886]
[1731686864503,24.027864,209.75,209.69,21.87800886]
[1731686865199,24.027864,209.75,209.66,0.1]
[1731686865200,24.027864,209.73,209.68,21.87800886]
[1731686865379,24.027864,209.73,209.66,21.97800886]
[1731686865583,0.25098,209.7,209.64,21.87800886]
[1731686865782,24.027864,209.7,209.64,21.87800886]
[1731686865981,24.027864,209.7,209.65,21.87800886]
[1731686866294,0.25098,209.7,209.68,21.87800886]
[1731686866888,22.12898886,209.71,209.66,0.1]
[1731686867085,0.25098,209.7,209.67,21.87800886]
[1731686867284,0.25098,209.7,209.66,0.1]
[1731686867596,0.25098,209.7,209.67,21.87800886]
[1731686867807,24.027864,209.7,209.66,21.87800886]
[1731686868506,26.637384,209.75,209.69,21.87800886]
[1731686868685,26.637384,209.75,209.7,21.83135028]
[1731686869491,26.637384,209.75,209.68,21.83135028]
[1731686869903,0.25098,209.72,209.67,21.93135028]
[1731686870080,24.027864,209.72,209.65,21.93135028]
[1731686870399,2.8608,209.73,209.69,21.83135028]
[1731686870795,2.8608,209.73,209.67,21.83135028]
[1731686871002,2.8608,209.73,209.67,21.93135028]
[1731686871196,2.8608,209.73,209.67,21.83135028]
[1731686871506,24.027864,209.72,209.64,21.83135028]
[1731686871712,24.027864,209.72,209.62,21.93135028]
[1731686872027,24.027864,209.7,209.64,21.83135028]
[1731686872591,24.027864,209.7,209.59,21.93135028]
[1731686872909,24.027864,209.7,209.6,21.83135028]
[1731686873085,24.027864,209.7,209.61,21.83135028]
[1731686873300,24.027864,209.7,209.63,21.83135028]
[1731686873492,0.25098,209.7,209.66,21.83135028]
[1731686873691,0.25098,209.7,209.65,21.83135028]
[1731686873896,0.25098,209.68,209.64,21.83135028]
[1731686874120,0.25098,209.68,209.67,21.83135028]
[1731686874492,0.25098,209.68,209.66,21.83135028]
[1731686874693,0.25098,209.68,209.65,21.83135028]
[1731686875318,24.027864,209.68,209.62,21.83135028]
[1731686875816,10.0156,209.67,209.6,21.83135028]
[1731686875992,24.027864,209.66,209.6,21.83135028]
[1731686876319,24.027864,209.66,209.58,0.1]
[1731686876494,0.25098,209.66,209.65,21.83135028]
[1731686876893,0.25098,209.66,209.64,21.83135028]
[1731686877224,0.25098,209.66,209.65,21.83135028]